[Event "Uppsala GM June 2022"]
[Site "Uppsala"]
[Date "2022.06.18"]
[Round "8.3"]
[White "Falkevall, Axel"]
[Black "Ernst, Thomas"]
[Result "1-0"]
[ECO "C55"]
[WhiteElo "2290"]
[BlackElo "2300"]
[Annotator "TA"]
[PlyCount "81"]
[EventDate "2022.06.09"]
[EventType "tourn"]
[EventCountry "SWE"]
[SourceTitle "playchess.com"]
[Source "ChessBase"]
[SourceQuality "1"]
[TimeControl "5400+30"]

{[%evp 15,81,36,40,6,20,2,17,3,14,-8,16,11,35,0,31,43,43,6,15,32,33,20,49,0,63,22,65,75,101,88,124,83,87,39,32,26,101,76,75,75,164,149,152,158,143,152,170,165,193,182,173,177,240,268,248,265,260,183,520,496,1212,1211,1135,1134,1243,985,949,937]} 1. e4 {[%emt 0:00:03]} e5 {[%emt 0:00:19]} 2. Nf3 {[%emt 0:00:05]} Nc6 {[%emt 0:00:05]} 3. Bc4 {[%emt 0:00:08]} Nf6 {[%emt 0:00:10]} 4. d3 {[%emt 0:00:05]} Be7 {[%emt 0:00:15]} 5. O-O {[%emt 0:00:07]} O-O {[%emt 0:00:09]} 6. Re1 {[%emt 0:00:07]} d6 {[%emt 0:01:12]} 7. a4 {[%emt 0:00:04][%cal Ba2a4,Ba4a5][%mdl 32]} Be6 {[%emt 0:00:29]} 8. Nbd2 {[%emt 0:02:13][%cal Bb1d2,Bd2c4,Bc4e3,Be3f5][%mdl 32]} Qd7 {[%emt 0:02:07]} 9. a5 {[%emt 0:02:27] C55: Two Knights: 4 d3, 4 d4 exd4 5 e5 and Max Lange Attack.} Bxc4 {[%emt 0:01:29]} 10. Nxc4 {[%emt 0:00:14]} Rfe8 {[%emt 0:00:37]} 11. c3 {[%emt 0:04:10] The position is equal.} b5 {[%emt 0:01:26]} 12. Ne3 {[%emt 0:01:27] [#]} (12. axb6 $5 axb6 13. Bg5 $11) 12... a6 $146 {[%emt 0:00:28]} ({Predecessor:} 12... g6 13. Nc2 Bf8 14. Bg5 Nh5 15. d4 h6 16. d5 Ne7 17. Bxe7 Bxe7 18. Nb4 Kh7 {1-0 (60) Sabirova,O (2151)-Verbova,E (1973) Tashkent 2012}) 13. Nf5 {[%emt 0:01:57]} Bd8 {[%emt 0:02:52]} 14. h3 {[%emt 0:06:02]} g6 {[%emt 0:03:37]} 15. Nh6+ {[%emt 0:01:28]} Kg7 {[%emt 0:00:07]} 16. Nh2 {[%emt 1:17:53]} (16. b4 {seems wilder.} d5 17. Bd2 dxe4 18. dxe4 Qe6 19. Rc1) 16... Ng8 {[%emt 0:03:17]} 17. Nxg8 {[%emt 0:00:00]} Kxg8 {[%emt 0:00:08]} 18. Ng4 {[%emt 0:00:00]} Kh8 {[%emt 0:09:26]} 19. Qf3 {[%emt 0:00:00]} (19. Bh6 $14) 19... Qe6 {[%emt 0:00:30]} (19... f5 $11 20. exf5 gxf5) 20. Bd2 {[%emt 0:00:00]} Nb8 {[%emt 0:02:58]} 21. d4 {[%emt 0:00:00][%cal Bd3d4,Bd4d5][%mdl 32]} Nd7 {[%emt 0:00:27]} 22. d5 {[%emt 0:00:00]} Qe7 {[%emt 0:00:10]} 23. Bh6 {[%emt 0:00:00]} f6 {[%emt 0:03:08]} 24. h4 {[%emt 0:00:00] White is much more active. The black rooks are badly placed.} (24. b4 $16) 24... Qf7 $14 {[%emt 0:00:58]} 25. Ne3 {[%emt 0:00:00][%cal Oh4h5] Inhibits f5. Black must now prevent h5!} Be7 {[%emt 0:02:18]} (25... f5 $11) 26. g3 {[%emt 0:00:00][%cal Oh4h5] White leaves nothing to chance now.} (26. h5 {keeps more tension.} f5 27. Qh3 f4 28. hxg6 Qxg6 29. Nf5) 26... Bf8 {[%emt 0:00:49]} 27. Bxf8 {[%emt 0:00:00]} Rxf8 {[%emt 0:00:10]} (27... Qxf8 $16 28. Kg2 Qh6) 28. h5 $1 $18 {[%emt 0:00:00]} f5 {[%emt 0:04:12]} 29. hxg6 $1 {[%emt 0:00:00]} hxg6 {[%emt 0:00:12]} 30. exf5 {[%emt 0:00:00]} gxf5 {[%emt 0:00:06] [#]} 31. Kg2 $1 {[%emt 0:00:00] Threatens to win with Rh1+.} Kg7 {[%emt 0:00:53]} 32. Rh1 {[%emt 0:00:00][%cal Be1h1,Bh1h4,Bh4h8][%mdl 32]} Qg6 {[%emt 1:01:26] [#]} 33. Rh4 {[%emt 0:00:00] Strongly threatening Rah1.} Rf7 {[%emt 0:00:00]} (33... f4 $2 34. Rg4 Rf6 35. Nf5+ Kf7 36. Rxg6 $18) (33... Rf6 $142 34. Rah1 Raf8) 34. Rah1 {[%emt 0:00:00][%cal Oh4h7,Ba1h1,Bh1h2,Bh2h6,Bh6h5][%mdl 32] Rh7+! is the strong threat.} Raf8 {[%emt 0:00:00]} 35. R1h2 {[%emt 0:00:00]} Rf6 {[%emt 0:00:00]} 36. Kf1 {[%emt 0:00:00]} R8f7 $2 {[%emt 0:00:00]} (36... Kf7 {is more resistant.}) 37. Qh1 {[%emt 0:00:00] White is clearly winning.} Kf8 {[%emt 0:00:00]} (37... f4 $142 38. Rg4 fxe3 39. Rh7+ Kf8 40. Rxg6 Rxg6 41. Rxf7+ Kxf7 42. Qf3+ Ke7 43. Qxe3 Rg4) 38. Rh8+ {[%emt 0:00:00]} Ke7 {[%emt 0:00:00]} 39. R2h6 {[%emt 0:00:00]} Qg5 {[%emt 0:00:00]} 40. Rh5 {[%emt 0:00:00]} Qg6 {[%emt 0:00:00]} 41. Qh4 {[%emt 0:00:00] Weighted Error Value: White=0.15 (very precise) /Black=0.35} 1-0

[Event "Uppsala GM June 2022"]
[Site "Uppsala"]
[Date "2022.06.18"]
[Round "8.4"]
[White "Roshka, Yevgeniy"]
[Black "Trost, Edvin"]
[Result "*"]
[ECO "D80"]
[WhiteElo "2468"]
[BlackElo "2366"]
[Annotator "TA"]
[PlyCount "39"]
[EventDate "2022.06.09"]
[EventType "tourn"]
[EventCountry "SWE"]
[SourceTitle "playchess.com"]
[Source "ChessBase"]
[SourceQuality "1"]
[TimeControl "5400+30"]

{[%evp 23,39,19,21,16,27,31,18,9,23,19,39,27,43,18,24,29,20,11]} 1. d4 {[%emt 0:00:04]} Nf6 {[%emt 0:00:35]} 2. c4 {[%emt 0:00:20]} g6 {[%emt 0:00:13]} 3. Nc3 {[%emt 0:00:16]} d5 {[%emt 0:00:05]} 4. Nf3 {[%emt 0:01:49]} Bg7 {[%emt 0:00:11]} 5. Bg5 {[%emt 0:00:05]} Ne4 {[%emt 0:00:06]} 6. Bf4 {[%emt 0:00:08]} Nxc3 {[%emt 0:00:45]} 7. bxc3 {[%emt 0:00:05]} c5 {[%emt 0:00:32]} 8. cxd5 {[%emt 0:01:01]} Qxd5 {[%emt 0:00:06]} 9. e3 {[%emt 0:00:06]} cxd4 {[%emt 0:01:07]} 10. cxd4 {[%emt 0:00:09]} Nc6 {[%emt 0:00:38]} 11. Be2 {[%emt 0:00:25]} O-O {[%emt 0:01:11]} 12. O-O {[%emt 0:01:13]} Bf5 {[%emt 0:02:02]} 13. Qa4 {[%emt 0:02:47] D80: Grünfeld: Unusual White 4th moves and 4 Bg5.} Qa5 {[%emt 0:04:08]} 14. Qxa5 {[%emt 0:01:05]} Nxa5 {[%emt 0:00:06]} 15. Rfc1 {[%emt 0:02:59] 15.Nd2 is the hot move.} Rfc8 {[%emt 0:00:28]} 16. Nd2 {[%emt 0:00:16] [#]} h6 $146 {[%emt 0:10:32]} ({Predecessor:} 16... Rxc1+ 17. Rxc1 Rc8 18. Rxc8+ Bxc8 19. Bf3 Be6 20. a3 Ba2 21. Bb8 a6 22. Bc7 Nc6 {1-0 (54) Fedoseev,V (2658)-Xiong,J (2674) Saint Louis 2017}) 17. Kf1 {[%emt 0:04:18]} Bc2 {[%emt 0:04:34]} 18. Ke1 {[%emt 0:05:01]} g5 {[%emt 0:04:50]} 19. Bg3 {[%emt 0:00:33][%cal Od2c4]} f5 {[%emt 0:00:52][%cal Of5f4]} 20. Nf3 {[%emt 0:13:16] Weighted Error Value: White=0.05 (flawless) /Black=0.08 (flawless)} *

[Event "Uppsala GM June 2022"]
[Site "Uppsala"]
[Date "2022.06.19"]
[Round "8.4"]
[White "Sorensen, Hampus"]
[Black "Chatalbashev, Boris"]
[Result "0-1"]
[ECO "D80"]
[WhiteElo "2372"]
[BlackElo "2536"]
[Annotator "TA"]
[PlyCount "78"]
[EventDate "2022.06.09"]
[EventType "tourn"]
[EventCountry "SWE"]
[SourceTitle "playchess.com"]
[Source "ChessBase"]
[SourceQuality "1"]
[TimeControl "5400+30"]

{[%evp 23,78,13,16,14,25,29,18,17,25,20,37,20,44,25,12,16,19,12,13,-8,0,0,0,0,0,-61,-77,-64,-52,-96,-103,-114,-114,-114,-114,-195,-211,-214,-204,-237,-198,-213,-216,-216,-211,-335,-267,-266,-248,-389,-400,-386,-371,-400,-380,-646,-636]} 1. d4 {[%emt 0:00:04]} Nf6 {[%emt 0:00:35]} 2. c4 {[%emt 0:00:20]} g6 {[%emt 0:00:13]} 3. Nc3 {[%emt 0:00:16]} d5 {[%emt 0:00:05]} 4. Nf3 {[%emt 0:01:49]} Bg7 {[%emt 0:00:11]} 5. Bg5 {[%emt 0:00:05]} Ne4 {[%emt 0:00:06]} 6. Bf4 {[%emt 0:00:08]} Nxc3 {[%emt 0:00:45]} 7. bxc3 {[%emt 0:00:05]} c5 {[%emt 0:00:32]} 8. cxd5 {[%emt 0:01:01]} Qxd5 {[%emt 0:00:06]} 9. e3 {[%emt 0:00:06]} cxd4 {[%emt 0:01:07]} 10. cxd4 {[%emt 0:00:09]} Nc6 {[%emt 0:00:38]} 11. Be2 {[%emt 0:00:25]} O-O {[%emt 0:01:11]} 12. O-O {[%emt 0:01:13]} Bf5 {[%emt 0:02:02]} 13. Qa4 {[%emt 0:02:47] D80: Grünfeld: Unusual White 4th moves and 4 Bg5.} Qa5 {[%emt 0:04:08]} 14. Qxa5 {[%emt 0:01:05]} Nxa5 {[%emt 0:00:06]} 15. Rfc1 {[%emt 0:02:59] The position is equal. 15.Nd2 deserves study.} Rfc8 {[%emt 0:00:28]} 16. Nd2 {[%emt 0:00:16] [#]} h6 $146 {[%emt 0:10:32]} ({Predecessor:} 16... Rxc1+ 17. Rxc1 Rc8 18. Rxc8+ Bxc8 19. Bf3 Be6 20. a3 Ba2 21. Bb8 a6 22. Bc7 Nc6 {1-0 (54) Fedoseev,V (2658)-Xiong,J (2674) Saint Louis 2017}) 17. Kf1 {[%emt 0:04:18]} Bc2 {[%emt 0:04:34][%cal Bf5c2,Bc2e4,Be4d5][%mdl 32]} 18. Ke1 {[%emt 0:05:01]} g5 {[%emt 0:04:50]} 19. Bg3 {[%emt 0:00:33][%cal Od2c4]} f5 {[%emt 0:00:52][%cal Of5f4]} 20. Nf3 {[%emt 0:13:16]} Be4 {[%emt 0:02:19]} 21. Bf1 {[%emt 0:04:34]} Bd5 {[%emt 0:06:36]} 22. Ne5 {[%emt 0:13:36]} Bxe5 {[%emt 0:16:58]} 23. Bxe5 {[%emt 0:01:23]} Nc6 {[%emt 0:00:07]} 24. Kd2 {[%emt 0:08:28]} (24. Rc5 $11 e6 25. Bd6) 24... Nxe5 $15 {[%emt 0:04:18]} 25. dxe5 {[%emt 0:00:02]} g4 {[%emt 0:00:26] Black is more active.} 26. a3 {[%emt 0:11:52] [#]} Kf7 $1 {[%emt 0:01:32]} 27. e4 {[%emt 0:00:15]} Bxe4 {[%emt 0:02:17]} 28. Ke3 {[%emt 0:00:14]} Bc2 {[%emt 0:08:26]} 29. Ra2 {[%emt 0:10:54]} (29. f3 $17) 29... Bb3 $19 {[%emt 0:00:32][%csl LRa2,LRc1]} 30. Raa1 {[%emt 0:00:33]} Ke6 {[%emt 0:04:25]} 31. Kf4 {[%emt 0:01:22]} Rd8 {[%emt 0:00:29] Prevents Bd3.} 32. Rc7 {[%emt 0:01:52]} Rd4+ {[%emt 0:00:29]} 33. Kg3 {[%emt 0:00:23]} Bd5 {[%emt 0:03:19]} ({Inferior is} 33... Kxe5 34. Rxe7+ Kf6 35. Rxb7 $11) 34. Re1 {[%emt 0:00:35]} (34. h4 {was called for.}) 34... a6 {[%emt 0:06:36]} 35. Rc3 {[%emt 0:01:00]} b5 {[%emt 0:01:50]} 36. f3 {[%emt 0:02:07]} (36. Rd3 $142 Re4 37. Red1) 36... gxf3 {[%emt 0:01:10]} 37. gxf3 {[%emt 0:00:08]} Rd2 {[%emt 0:02:17]} 38. Be2 {[%emt 0:00:24]} Rg8+ {[%emt 0:02:45]} 39. Kh3 $2 {[%emt 0:00:26] [#]} (39. Kf4 Rd4+ 40. Ke3) 39... f4 {[%emt 0:02:12] Weighted Error Value: White=0.37/Black=0.06 (flawless)} 0-1

[Event "Uppsala GM June 2022"]
[Site "Uppsala"]
[Date "2022.06.19"]
[Round "8.5"]
[White "Roshka, Yevgeniy"]
[Black "Trost, Edvin"]
[Result "1-0"]
[ECO "D23"]
[WhiteElo "2468"]
[BlackElo "2366"]
[Annotator "TA"]
[PlyCount "81"]
[EventDate "2022.06.09"]
[EventType "tourn"]
[EventCountry "SWE"]
[SourceTitle "playchess.com"]
[Source "ChessBase"]
[SourceQuality "1"]
[TimeControl "5400+30"]

{[%evp 18,81,13,8,20,15,6,6,10,0,29,32,42,19,90,106,102,40,136,134,135,122,119,119,124,0,0,0,0,0,0,0,0,33,250,227,258,227,291,259,410,295,301,316,307,311,297,311,377,377,438,434,476,468,442,382,2202,1458,2514,2364,29982,29983,29997,29998,29998,29999]} 1. d4 {[%emt 0:10:56]} d5 {[%emt 0:00:04]} 2. c4 {[%emt 0:00:09]} c6 {[%emt 0:00:20]} 3. Nf3 {[%emt 0:00:05]} Nf6 {[%emt 0:00:06]} 4. Qb3 {[%emt 0:01:48]} dxc4 {[%emt 0:00:22]} 5. Qxc4 {[%emt 0:00:33]} Bf5 {[%emt 0:00:38]} 6. g3 {[%emt 0:01:11]} Nbd7 {[%emt 0:00:41]} 7. Bg2 {[%emt 0:00:49]} e6 {[%emt 0:00:05]} 8. O-O {[%emt 0:01:08]} Be7 {[%emt 0:00:11]} 9. Nc3 {[%emt 0:05:08]} O-O {[%emt 0:01:24]} 10. e3 {[%emt 0:05:51]} Qc7 {[%emt 0:01:26] D23: Queen's Gambit Accepted: 3 Nf3 Nf6 sidelines.} 11. Nh4 {[%emt 0:02:37]} Bg4 {[%emt 0:07:04] [#]} 12. h3 $146 {[%emt 0:00:57]} ({Predecessor:} 12. e4 e5 13. Be3 Rfd8 14. d5 Nb6 15. Qb3 cxd5 16. exd5 Qd7 17. Nf3 Bxf3 18. Bxf3 {1-0 (51) Shyam,N (2424)-Gagunashvili,M (2547) Gurgaon 2014}) 12... Bh5 {[%emt 0:00:29] The position is equal.} 13. e4 {[%emt 0:00:02]} Nb6 {[%emt 0:16:53]} 14. Qb3 {[%emt 0:01:09]} Nfd7 {[%emt 0:01:16]} 15. Nf3 {[%emt 0:00:09]} e5 {[%emt 0:02:36]} (15... a5 $11 {remains equal.}) 16. Nxe5 $1 $16 {[%emt 0:06:25]} Nxe5 {[%emt 0:02:50]} 17. Bf4 {[%emt 0:00:27]} (17. dxe5 $16 {Black must now prevent g4.} g5 18. f4) 17... Bd6 {[%emt 0:02:25]} (17... Nbd7 $1 $14) 18. dxe5 {[%emt 0:00:30]} Bxe5 {[%emt 0:00:08]} 19. Bxe5 {[%emt 0:00:03]} Qxe5 {[%emt 0:00:08] [#]} 20. f4 $1 {[%emt 0:00:30]} Qc5+ {[%emt 0:00:39] [#]} 21. Kh1 {[%emt 0:00:30]} ({Only move:} 21. Rf2 $1 $16) 21... Nc4 $1 $11 {[%emt 0:08:30]} 22. Na4 $36 {[%emt 0:00:22][%mdl 2048] White has good play.} Qd4 {[%emt 0:06:16]} 23. g4 {[%emt 0:01:21][%cal Bg3g4,Bg4h5,Bh5h6][%mdl 32]} Nd2 {[%emt 0:01:01][%csl LRb3,LRe4,LRf1]} 24. Qd1 {[%emt 0:00:05]} Rad8 {[%emt 0:00:15]} 25. Re1 {[%emt 0:00:27]} Qf2 $2 {[%emt 0:04:57] A mistake that costs the game.} 26. gxh5 {[%emt 0:00:39] aiming for Qg4.} Qxf4 {[%emt 0:00:41][%cal Od2e4]} 27. Qg4 {[%emt 0:00:20]} Qe5 {[%emt 0:00:42]} 28. Rac1 {[%emt 0:01:00]} Rd3 {[%emt 0:00:40]} (28... Rfe8 {was necessary.} 29. h6 g6) 29. Rc3 {[%emt 0:05:01]} Rxc3 {[%emt 0:00:14]} 30. Nxc3 {[%emt 0:00:09]} Nc4 {[%emt 0:00:25]} 31. h6 {[%emt 0:02:16]} g6 {[%emt 0:00:08]} 32. Qe2 {[%emt 0:01:04]} b5 {[%emt 0:00:35]} 33. b3 {[%emt 0:03:52]} Qxc3 {[%emt 0:00:09]} 34. bxc4 {[%emt 0:00:05]} bxc4 {[%emt 0:00:07]} 35. e5 {[%emt 0:00:11]} Re8 {[%emt 0:01:21]} 36. Qe3 {[%emt 0:00:11]} Qa5 {[%emt 0:00:51]} (36... Qxe3 37. Rxe3 Rd8 38. Bxc6 Kf8) 37. Bxc6 $18 {[%emt 0:10:47]} Re6 {[%emt 0:00:45] [#]} 38. Rb1 $1 {[%emt 0:00:20] Intending Rb8+ and mate.} Qd8 {[%emt 0:00:28] [#] Against Rb8} (38... Qc7 39. Bd5) 39. Qd4 $3 {[%emt 0:01:04][%mdl 512] White mates.} Qxd4 {[%emt 0:00:27]} (39... Qc7 40. Bd5) 40. Rb8+ {[%emt 0:00:02]} Qd8 {[%emt 0:00:08]} 41. Rxd8+ {[%emt 0:00:02] Weighted Error Value: White=0.14 (very precise) /Black=0.48} 1-0

[Event "Uppsala GM June 2022"]
[Site "Uppsala"]
[Date "2022.06.18"]
[Round "8.5"]
[White "Sorensen, Hampus"]
[Black "Chatalbashev, Boris"]
[Result "*"]
[ECO "D23"]
[WhiteElo "2372"]
[BlackElo "2536"]
[Annotator "TA"]
[PlyCount "30"]
[EventDate "2022.06.09"]
[EventType "tourn"]
[EventCountry "SWE"]
[SourceTitle "playchess.com"]
[Source "ChessBase"]
[SourceQuality "1"]
[TimeControl "5400+30"]

{[%evp 18,30,0,0,24,19,18,21,16,10,22,37,37,15,88]} 1. d4 {[%emt 0:10:56]} d5 {[%emt 0:00:04]} 2. c4 {[%emt 0:00:09]} c6 {[%emt 0:00:20]} 3. Nf3 {[%emt 0:00:05]} Nf6 {[%emt 0:00:06]} 4. Qb3 {[%emt 0:01:48]} dxc4 {[%emt 0:00:22]} 5. Qxc4 {[%emt 0:00:33]} Bf5 {[%emt 0:00:38]} 6. g3 {[%emt 0:01:11]} Nbd7 {[%emt 0:00:41]} 7. Bg2 {[%emt 0:00:49]} e6 {[%emt 0:00:05]} 8. O-O {[%emt 1:18:59]} Be7 {[%emt 0:00:11]} 9. Nc3 {[%emt 0:05:08]} O-O {[%emt 0:01:24]} 10. e3 {[%emt 0:05:51]} Qc7 {[%emt 0:01:26] D23: Queen's Gambit Accepted: 3 Nf3 Nf6 sidelines.} 11. Nh4 {[%emt 0:02:37]} Bg4 {[%emt 1:30:43] [#]} 12. h3 $146 {[%emt 0:00:57]} ({Predecessor:} 12. e4 e5 13. Be3 Rfd8 14. d5 Nb6 15. Qb3 cxd5 16. exd5 Qd7 17. Nf3 Bxf3 18. Bxf3 {1-0 (51) Shyam,N (2424)-Gagunashvili,M (2547) Gurgaon 2014}) 12... Bh5 {[%emt 0:00:29]} 13. e4 {[%emt 0:00:02]} Nb6 {[%emt 0:16:53]} 14. Qb3 {[%emt 0:01:09]} Nfd7 {[%emt 0:01:16]} 15. Nf3 {[%emt 0:00:09]} e5 {[%emt 0:02:36] White took control after the opening.  Weighted Error Value: White=0.00 (flawless) /Black=0.07 (flawless)} (15... a5 $11 {keeps the balance.}) *

[Event "Uppsala GM June 2022"]
[Site "Uppsala"]
[Date "2022.06.19"]
[Round "9.1"]
[White "Nilsson, Joakim"]
[Black "Sorensen, Hampus"]
[Result "1/2-1/2"]
[ECO "E60"]
[WhiteElo "2237"]
[BlackElo "2372"]
[Annotator "TA"]
[PlyCount "80"]
[EventDate "2022.06.09"]
[EventType "tourn"]
[EventCountry "SWE"]
[SourceTitle "playchess.com"]
[Source "ChessBase"]
[SourceQuality "1"]
[TimeControl "5400+30"]

{[%evp 18,80,35,24,61,34,59,60,60,57,53,52,68,62,83,82,93,52,65,73,74,70,73,72,83,73,67,77,83,74,78,66,83,0,27,20,20,20,20,0,79,86,81,81,82,82,78,70,100,52,100,56,65,54,89,48,100,42,103,118,107,39,51,50,71]} 1. d4 {[%emt 0:00:31]} Nf6 {[%emt 0:00:13]} 2. c4 {[%emt 0:00:06][%cal Bc2c4,Bc4b5,Bb5a6][%mdl 32]} c5 {[%emt 0:00:12]} 3. d5 {[%emt 0:00:24]} b5 {[%emt 0:00:05]} 4. cxb5 {[%emt 0:03:12]} a6 {[%emt 0:00:11]} 5. bxa6 {[%emt 0:00:11]} g6 {[%emt 0:00:30]} 6. Nc3 {[%emt 0:00:06]} Bg7 {[%emt 0:00:11]} 7. Nf3 {[%emt 0:00:26]} O-O {[%emt 0:01:09]} 8. g3 {[%emt 0:00:12]} d6 {[%emt 0:05:53]} 9. Bg2 {[%emt 0:00:09]} Nxa6 {[%emt 0:02:29]} 10. O-O {[%emt 0:00:09]} Qb6 {[%emt 0:00:26] E60: King's Indian: Unusual lines and Fianchetto Variation without Nc3.} 11. Nd2 {[%emt 0:05:48]} Nc7 {[%emt 0:01:15]} 12. b3 {[%emt 0:14:31]} Ba6 {[%emt 0:02:58][%cal Of6d5]} 13. Bb2 {[%emt 0:00:33]} Rfb8 {[%emt 0:00:58]} 14. Qc2 {[%emt 0:03:02] [#]} Qb7 $146 {[%emt 0:06:47]} ({Predecessor:} 14... Qb4 15. Rab1 Nb5 16. Nxb5 Bxb5 17. a3 Qg4 18. Rfe1 Qh5 19. h3 Bd7 20. g4 Qg5 {1-0 (34) Keres,P-Opocensky,K Parnu 1937}) 15. Rfd1 {[%emt 0:00:59]} Ra7 {[%emt 0:02:41]} 16. Rab1 {[%emt 0:02:31]} Qa8 {[%emt 0:03:47]} 17. Nde4 {[%emt 0:19:55][%cal Oe4c5]} Nd7 {[%emt 0:05:13]} 18. Na4 {[%emt 0:17:10][%cal Re4c5]} (18. Ng5 {keeps more tension.} Ne5 19. Na4 Bb5 20. Nxc5 Rxa2 21. Nce6) 18... Bxb2 {[%emt 0:02:09]} 19. Rxb2 {[%emt 0:00:24][%cal Ra4c5]} Rab7 {[%emt 0:06:54]} 20. Nac3 {[%emt 0:04:41] White is much more active.} Ne5 {[%emt 0:03:52][%cal Oe5c4]} 21. Rdb1 {[%emt 0:00:38]} Nb5 {[%emt 0:18:26]} 22. Nxb5 {[%emt 0:00:36]} Rxb5 {[%emt 0:00:18]} 23. Qd2 {[%emt 0:11:24]} Bc8 {[%emt 0:03:31]} 24. f4 {[%emt 0:07:18]} Nd7 {[%emt 0:04:34]} 25. f5 {[%emt 0:00:49]} (25. Nf2 $16) 25... Qa7 {[%emt 0:04:42]} (25... c4 $5) 26. Kh1 {[%emt 0:02:31] Threatens to win with Qh6.} Ne5 {[%emt 0:08:28]} 27. f6 {[%emt 0:00:22] [#] White threatens Qh6 and mate.} Ng4 {[%emt 0:02:42] Against Qh6} 28. Qf4 {[%emt 0:01:45] Strongly threatening fxe7.} R5b6 {[%emt 0:01:47]} (28... Bf5 $11 {remains equal.} 29. Rf1 (29. fxe7 Bxe4 30. Bxe4 Rb4 $11) 29... Bxe4 30. Qxg4 Bxg2+ 31. Kxg2 exf6) 29. h3 $16 {[%emt 0:01:27]} Nxf6 {[%emt 0:00:08]} 30. Nxf6+ {[%emt 0:00:07]} exf6 {[%emt 0:00:02]} 31. Qxf6 {[%emt 0:00:10]} Ba6 {[%emt 0:02:34]} 32. e4 {[%emt 0:00:27]} Re8 {[%emt 0:01:07]} 33. h4 {[%emt 0:00:31]} (33. b4 $16) 33... Qd7 {[%emt 0:01:00]} (33... Qe7 $14 {is more appropriate.} 34. Qf3 Bc8) 34. Rf2 {[%emt 0:00:38]} h5 {[%emt 0:02:00]} 35. Re1 {[%emt 0:00:10][%cal Bb1e1,Be1e3,Be3f3][%mdl 32] e5 is the strong threat.} Re5 {[%emt 0:00:20]} 36. Kh2 {[%emt 0:01:13]} Rb8 {[%emt 0:01:41]} (36... Qe7 $14) 37. Bh3 {[%emt 0:01:28]} (37. Re3 $16) 37... Qc7 {[%emt 0:00:01]} (37... Qe7 $14) 38. Re3 {[%emt 0:00:48] Black must now prevent Ref3.} Bc8 {[%emt 0:01:55]} 39. Bxc8 {[%emt 0:00:19]} (39. Bf1 $16) 39... Rxc8 $14 {[%emt 0:00:01]} 40. Ref3 {[%emt 0:01:18][%cal Rf6f7]} Rf8 {[%emt 0:00:44] Weighted Error Value: White=0.15 (very precise) /Black=0.21 (precise)} 1/2-1/2

[Event "Uppsala GM June 2022"]
[Site "Uppsala"]
[Date "2022.06.19"]
[Round "9.3"]
[White "Ernst, Thomas"]
[Black "Peng, Li Min"]
[Result "1/2-1/2"]
[ECO "C04"]
[WhiteElo "2300"]
[BlackElo "2506"]
[Annotator "TA"]
[PlyCount "49"]
[EventDate "2022.06.09"]
[EventType "tourn"]
[EventCountry "SWE"]
[SourceTitle "playchess.com"]
[Source "ChessBase"]
[SourceQuality "1"]
[TimeControl "5400+30"]

{[%evp 9,49,44,91,81,81,42,52,50,42,50,56,42,56,46,35,29,42,32,51,40,51,43,60,29,29,18,10,14,105,22,194,161,157,166,175,170,165,0,168,0,146,0]} 1. e4 {[%emt 0:00:06]} e6 {[%emt 0:09:46]} 2. d4 {[%emt 0:00:08]} d5 {[%emt 0:00:03]} 3. Nd2 {[%emt 0:00:06]} Nc6 {[%emt 0:00:04]} 4. Ngf3 {[%emt 0:00:17]} Nf6 {[%emt 0:00:03]} 5. e5 {[%emt 0:00:11]} Ng4 {[%emt 0:00:22]} (5... Nd7 $1 $14) 6. Bd3 {[%emt 0:08:43] C04: French Tarrasch: 3...Nc6.} f6 {[%emt 0:00:44][%cal Rf6e5] [#]} 7. exf6 $146 {[%emt 0:02:07]} ({Predecessor:} 7. Ng5 f5 8. Ndf3 Nb4 9. Be2 c5 10. c3 Nc6 11. O-O Be7 12. Nh3 cxd4 13. cxd4 {½-½ (57) Fiedorek,M (2081)-Mirzoev,E (2418) Lvov 2018}) 7... Qxf6 {[%emt 0:00:11]} 8. O-O {[%emt 0:00:42] White is slightly better.} Bd6 {[%emt 0:00:06]} (8... Nxd4 $2 9. Nxd4 Qxd4 10. Nb3 $18) 9. h3 {[%emt 0:13:18]} Nh6 {[%emt 0:00:04]} 10. c4 {[%emt 0:00:13]} O-O {[%emt 0:02:17]} 11. Nb3 {[%emt 0:02:24]} Nf7 {[%emt 0:01:01] Inhibits Bg5.} 12. Be3 {[%emt 0:02:22]} a5 {[%emt 0:00:19]} 13. Rc1 {[%emt 0:02:34]} a4 {[%emt 0:00:07]} 14. Nbd2 {[%emt 0:00:07]} a3 {[%emt 0:00:08]} 15. b3 {[%emt 0:00:05]} Nb4 {[%emt 0:00:02]} 16. Bb1 {[%emt 0:00:13]} c6 {[%emt 0:00:02]} 17. Re1 {[%emt 0:01:18]} Bd7 {[%emt 0:01:33]} 18. Nf1 {[%emt 1:04:36] Strongly threatening N1h2.} Rae8 {[%emt 0:00:04]} (18... e5 $11 {remains equal.}) 19. N1h2 {[%emt 0:00:00]} ({White should play} 19. Qd2 $16) 19... h5 $2 {[%emt 0:00:39]} (19... e5 $11 {and Black has nothing to worry.}) 20. Qd2 {[%emt 0:00:00] Hoping for c5.} Na6 {[%emt 0:14:24]} 21. Qd3 {[%emt 0:00:00][%csl Gb1][%cal Rd3h7] [#]} Qf5 {[%emt 0:00:51] Against Qh7+} 22. Qd1 {[%emt 0:00:00]} Qf6 {[%emt 0:00:10]} 23. Qd3 {[%emt 0:00:00][%csl Gb1][%cal Rd3h7]} Qf5 {[%emt 0:00:05] Prevents Qh7+.} 24. Qd1 {[%emt 0:00:00]} Qf6 {[%emt 0:00:01]} 25. Qd3 {Weighted Error Value: White=0.30/Black=0.25 (precise)} (25. c5 $16 Bc7 26. Qd3) 1/2-1/2